Workbook

Sheet 購物清單
M1: =計算!M9 -> 乳製品 總計
B2: 購物清單
C3: 完成 | D3: 項目 | E3: 商店 | F3: 類別 | G3: 數量 | H3: 單位 | I3: 單價 | J3: 總計 | K3: 備註 | M3: =計算!L9 -> 37
C4: 1 | D4: 橘子 | E4: 雜貨店 | F4: 農產品 | G4: 2 | H4: 磅 | I4: NT$2.99 | J4: =IFERROR(清單[數量]*清單[單價],"") -> NT$5.98 | M4: =計算!M8 -> 農產品 總計
D5: 蘋果 | E5: 果園 | F5: 農產品 | G5: 3 | H5: 磅 | I5: NT$1.99 | J5: =IFERROR(清單[數量]*清單[單價],"") -> NT$5.97 | K5: 有折價券 | M5: =計算!L8 -> 45
D6: 香蕉 | E6: 雜貨店 | F6: 農產品 | G6: 1 | H6: 串/束 | I6: NT$3.99 | J6: =IFERROR(清單[數量]*清單[單價],"") -> NT$3.99
D7: 萵苣 | E7: 市場 | F7: 農產品 | G7: 2 | H7: 把 | I7: NT$2.29 | J7: =IFERROR(清單[數量]*清單[單價],"") -> NT$4.58 | M7: =計算!M7 -> 肉品 總計
D8: 番茄 | E8: 市場 | F8: 農產品 | G8: 4 | H8: 磅 | I8: NT$3.49 | J8: =IFERROR(清單[數量]*清單[單價],"") -> NT$13.96 | M8: =計算!L7 -> 80
D9: 果汁飲料 | E9: 市場 | F9: 農產品 | G9: 2 | H9: 每個 | I9: NT$1.50 | J9: =IFERROR(清單[數量]*清單[單價],"") -> NT$3.00
D10: 芹菜 | E10: 雜貨店 | F10: 農產品 | G10: 2 | H10: 串/束 | I10: NT$1.99 | J10: =IFERROR(清單[數量]*清單[單價],"") -> NT$3.98 | M10: =計算!M6 -> 海鮮 總計
D11: 小黃瓜 | E11: 市場 | F11: 農產品 | G11: 1 | H11: 磅 | I11: NT$2.29 | J11: =IFERROR(清單[數量]*清單[單價],"") -> NT$2.29 | M11: =計算!L6 -> 109
D12: 香菇 | E12: 雜貨店 | F12: 農產品 | G12: 0.5 | H12: 磅 | I12: NT$2.25 | J12: =IFERROR(清單[數量]*清單[單價],"") -> NT$1.13 | K12: 大褐菇
D13: 牛奶 | E13: 宅配 | F13: 乳製品 | G13: 2 | H13: 加侖 | I13: NT$3.99 | J13: =IFERROR(清單[數量]*清單[單價],"") -> NT$7.98 | M13: =計算!M3 -> 其他總計
D14: 起司 | E14: 宅配 | F14: 乳製品 | G14: 1 | H14: 磅 | I14: NT$9.99 | J14: =IFERROR(清單[數量]*清單[單價],"") -> NT$9.99 | K14: 各種起司塊 | M14: =計算!L3 -> 0
D15: 雞蛋 | E15: 宅配 | F15: 乳製品 | G15: 2 | H15: 一打 | I15: NT$3.50 | J15: =IFERROR(清單[數量]*清單[單價],"") -> NT$7.00
D16: 鄉村乳酪 | E16: 宅配 | F16: 乳製品 | G16: 1 | H16: 16 盎司 | I16: NT$3.89 | J16: =IFERROR(清單[數量]*清單[單價],"") -> NT$3.89 | M16: =計算!M4 -> 購物總計
D17: 酸奶油 | E17: 宅配 | F17: 乳製品 | G17: 1 | H17: 8 盎司 | I17: NT$2.99 | J17: =IFERROR(清單[數量]*清單[單價],"") -> NT$2.99 | M17: =購物總計 -> 271
D18: 優格 | E18: 雜貨店 | F18: 乳製品 | G18: 1 | H18: 16 盎司 | I18: NT$4.99 | J18: =IFERROR(清單[數量]*清單[單價],"") -> NT$4.99 | K18: 希臘式 (含蜂蜜)
D19: 牛肉 | E19: 市場 | F19: 肉品 | G19: 10 | H19: 磅 | I19: NT$7.99 | J19: =IFERROR(清單[數量]*清單[單價],"") -> NT$79.90 | K19: 培根包里肌肉
D20: 野生鮭魚 | E20: 魚市場 | F20: 海鮮 | G20: 6 | H20: 磅 | I20: NT$8.99 | J20: =IFERROR(清單[數量]*清單[單價],"") -> NT$53.94
D21: 阿拉斯加帝王蟹腳 | E21: 魚市場 | F21: 海鮮 | G21: 5 | H21: 磅 | I21: NT$10.99 | J21: =IFERROR(清單[數量]*清單[單價],"") -> NT$54.95

Sheet 計算 (hidden)
A1: *** 工作表要保持隱藏 ***
K3: =SUM(清單[總計])-SUM(K6:K9) -> NT$0.00 | L3: =ROUND(K3,0) -> NT$0 | M3: 其他總計
L4: =ROUNDUP(SUM(清單[總計]),0) -> NT$271 | M4: 購物總計
E6: =IFERROR(INDEX(清單[類別],MATCH(,COUNTIF($E$5:E5,清單[類別]),)),"") -> 農產品 | F6: =SUMIFS(清單[總計],清單[類別],E6) -> 44.875 | G6: =F6+ROW()/1000000 -> 44.875006 | H6: =LARGE($G$6:$G$21,1) -> 108.890009 | I6: =MATCH(H6,$G$6:$G$21,0) -> 4 | J6: =INDEX($E$6:$E$21,$I6) -> 海鮮 | K6: =INDEX($F$6:$F$21,$I6) -> NT$108.89 | L6: =ROUND(K6,0) -> NT$109 | M6: =UPPER(J6) & " 總計" -> 海鮮 總計
E7: =IFERROR(INDEX(清單[類別],MATCH(,COUNTIF($E$5:E6,清單[類別]),)),"") -> 乳製品 | F7: =SUMIFS(清單[總計],清單[類別],E7) -> 36.84 | G7: =F7+ROW()/1000000 -> 36.840007 | H7: =LARGE($G$6:$G$21,2) -> 79.900008 | I7: =MATCH(H7,$G$6:$G$21,0) -> 3 | J7: =INDEX($E$6:$E$21,$I7) -> 肉品 | K7: =INDEX($F$6:$F$21,$I7) -> NT$79.90 | L7: =ROUND(K7,0) -> NT$80 | M7: =UPPER(J7) & " 總計" -> 肉品 總計
E8: =IFERROR(INDEX(清單[類別],MATCH(,COUNTIF($E$5:E7,清單[類別]),)),"") -> 肉品 | F8: =SUMIFS(清單[總計],清單[類別],E8) -> 79.9 | G8: 79.900008 | H8: =LARGE($G$6:$G$21,3) -> 44.875006 | I8: =MATCH(H8,$G$6:$G$21,0) -> 1 | J8: =INDEX($E$6:$E$21,$I8) -> 農產品 | K8: =INDEX($F$6:$F$21,$I8) -> NT$44.88 | L8: =ROUND(K8,0) -> NT$45 | M8: =UPPER(J8) & " 總計" -> 農產品 總計
E9: =IFERROR(INDEX(清單[類別],MATCH(,COUNTIF($E$5:E8,清單[類別]),)),"") -> 海鮮 | F9: =SUMIFS(清單[總計],清單[類別],E9) -> 108.89 | G9: 108.890009 | H9: =LARGE($G$6:$G$21,4) -> 36.840007 | I9: =MATCH(H9,$G$6:$G$21,0) -> 2 | J9: =INDEX($E$6:$E$21,$I9) -> 乳製品 | K9: =INDEX($F$6:$F$21,$I9) -> NT$36.84 | L9: =ROUND(K9,0) -> NT$37 | M9: =UPPER(J9) & " 總計" -> 乳製品 總計
E10: =IFERROR(INDEX(清單[類別],MATCH(,COUNTIF($E$5:E9,清單[類別]),)),"") ->  | F10: =SUMIFS(清單[總計],清單[類別],E10) -> 0 | G10: 1e-05
E11: =IFERROR(INDEX(清單[類別],MATCH(,COUNTIF($E$5:E10,清單[類別]),)),"") ->  | F11: =SUMIFS(清單[總計],清單[類別],E11) -> 0 | G11: 1.1e-05
E12: =IFERROR(INDEX(清單[類別],MATCH(,COUNTIF($E$5:E11,清單[類別]),)),"") ->  | F12: =SUMIFS(清單[總計],清單[類別],E12) -> 0 | G12: 1.2e-05
E13: =IFERROR(INDEX(清單[類別],MATCH(,COUNTIF($E$5:E12,清單[類別]),)),"") ->  | F13: =SUMIFS(清單[總計],清單[類別],E13) -> 0 | G13: 1.3e-05
E14: =IFERROR(INDEX(清單[類別],MATCH(,COUNTIF($E$5:E13,清單[類別]),)),"") ->  | F14: =SUMIFS(清單[總計],清單[類別],E14) -> 0 | G14: 1.4e-05
E15: =IFERROR(INDEX(清單[類別],MATCH(,COUNTIF($E$5:E14,清單[類別]),)),"") ->  | F15: =SUMIFS(清單[總計],清單[類別],E15) -> 0 | G15: 1.5e-05
E16: =IFERROR(INDEX(清單[類別],MATCH(,COUNTIF($E$5:E15,清單[類別]),)),"") ->  | F16: =SUMIFS(清單[總計],清單[類別],E16) -> 0 | G16: 1.6e-05
E17: =IFERROR(INDEX(清單[類別],MATCH(,COUNTIF($E$5:E16,清單[類別]),)),"") ->  | F17: =SUMIFS(清單[總計],清單[類別],E17) -> 0 | G17: 1.7e-05
E18: =IFERROR(INDEX(清單[類別],MATCH(,COUNTIF($E$5:E17,清單[類別]),)),"") ->  | F18: =SUMIFS(清單[總計],清單[類別],E18) -> 0 | G18: 1.8e-05
E19: =IFERROR(INDEX(清單[類別],MATCH(,COUNTIF($E$5:E18,清單[類別]),)),"") ->  | F19: =SUMIFS(清單[總計],清單[類別],E19) -> 0 | G19: 1.9e-05
E20: =IFERROR(INDEX(清單[類別],MATCH(,COUNTIF($E$5:E19,清單[類別]),)),"") ->  | F20: =SUMIFS(清單[總計],清單[類別],E20) -> 0 | G20: 2e-05
E21: =IFERROR(INDEX(清單[類別],MATCH(,COUNTIF($E$5:E20,清單[類別]),)),"") ->  | F21: =SUMIFS(清單[總計],清單[類別],E21) -> 0 | G21: 2.1e-05
